Cogmind - Beta 16 *** ADVENTURER MODE // 2025.12.19 @ 19:54:58 Player: Gentle Jesus Result: Destroyed by QH-CLK(R) with Subdweller Laser Performance ------------- Evolutions (0) 0 Regions Visited (3) 600 Robots Destroyed (18) 90 Value Destroyed (535) 535 Prototype IDs (12) 240 Alien Tech Used (0) 0 Bonus (0) 0 TOTAL SCORE: 1465 Bonus ------- None Cogmind --------- Core Integrity 0/250 Matter 259/300 Energy 180/180 System Corruption 0% Temperature Cool (6) Movement Rolling (110) Location -10/Subcaves Parts ------- > --- POWER (1) -------- Meta Core > --- PROPULSION (2) --- Subdweller Monowheel > --- UTILITY (2+1) ---- Small Storage Unit Sensor Array Signal Interpreter (+) > --- WEAPON (2+1) ----- Assault Rifle (+) > --- INVENTORY (8) ---- Subdweller Power Source Flight Unit Flight Unit Flight Unit Heat Sink Mining Claw Peak State ------------ > --- POWER ------------ Meta Core > --- PROPULSION ------- Wheel Subdweller Monowheel Subdweller Monowheel > --- UTILITY ---------- Small Storage Unit Sensor Array Signal Interpreter > --- WEAPON ----------- Particle Gun Assault Rifle Subdweller Machine Gun > --- INVENTORY -------- Subdweller Power Source Flight Unit Flight Unit Flight Unit Heat Sink Mining Claw [Rating: 26] Favorites ----------- Power Light Ion Engine Engine Light Ion Engine Power Core Meta Core Propulsion Wheel Wheel Wheel Utility Small Storage Unit Device Sensor Array Storage Small Storage Unit Processor Signal Interpreter Weapon Particle Gun Energy Gun Particle Gun Energy Cannon Subdweller Beam Cannon Ballistic Gun Assault Rifle Slashing Weapon Mining Claw Build | -11 -10 -10 -10 ------- Run | Yrd Mat Min Sub Slots Evolved . | . . . . Power . | . . . . Propulsion . | . . . . Utility . | . . . . Weapon . | . . . . Parts Attached 22 | 7 2 2 11 Power 3 | 1 . 1 1 Engine 2 | 1 . 1 . Core 1 | . . . 1 Reactor . | . . . . Propulsion 7 | 2 . 1 4 Treads . | . . . . Leg . | . . . . Wheel 7 | 2 . 1 4 Hover . | . . . . Flight . | . . . . Utility 4 | 2 . . 2 Device 2 | 1 . . 1 Storage 1 | 1 . . . Processor 1 | . . . 1 Hackware . | . . . . Protection . | . . . . Artifact . | . . . . Weapon 8 | 2 2 . 4 Energy Gun 2 | 1 1 . . Energy Cannon 2 | . . . 2 Ballistic Gun 3 | 1 . . 2 Ballistic Cannon . | . . . . Launcher . | . . . . Special Weapon . | . . . . Impact Weapon . | . . . . Slashing Weapon 1 | . 1 . . Piercing Weapon . | . . . . Special Melee Weapon . | . . . . Unidentified Prototypes . | . . . . Parts Lost 6 | . 1 . 5 Power . | . . . . Propulsion 3 | . . . 3 Utility . | . . . . Weapon 3 | . 1 . 2 Highest Loss Streak 2 | . 1 . 2 To Critical Strikes 1 | . . . 1 Average Backups 6 | 1 4 7 6 Power . | . 1 . . Propulsion 2 | . 1 1 3 Utility 1 | . . 3 1 Weapon 1 | . 1 2 1 Tool/Special . | . . . . Unused Backups 5 | . . . 5 Power 1 | . . . 1 Propulsion 3 | . . . 3 Utility 1 | . . . 1 Weapon . | . . . . Tool/Special . | . . . . Average Slot Usage (%) 92 | . 98 100 92 Engine 9 | . 14 14 8 Core 3 | . . . 3 Wheel 24 | . 28 28 24 Device 12 | . 14 14 12 Storage 12 | . 14 14 12 Processor 3 | . . . 3 Energy Gun 8 | . 9 . 8 Energy Cannon 6 | . . . 7 Ballistic Gun 5 | . 14 14 3 Slashing Weapon 5 | . 2 14 4 Peak Build Rating 26 | 9 10 9 26 Average Rating 12 | 5 9 8 13 On Entrance 6 | . 9 9 8 Avg Prop Armor Cover (%) . | . . . . Naked Turns . | . . . . Heaviest Build 25 | 14 15 14 25 Greatest Support 50 | 26 26 26 50 Greatest Overweight (x) 2 | . . . 2 Average Overweight (x) . | . . . . Largest Inventory Capacity 8 | 8 8 8 8 Average Capacity 7 | 7 8 8 8 Most Carried 8 | 3 8 8 8 Average Carried 6 | 1 4 7 6 Final Capacity 8 | 8 8 8 8 Final Carried 8 | 3 8 8 6 Class Distribution -------------------- 84% | Mutant 11% | Skirmisher 3% | Scavenger-Skirmisher Dominant Class ---------------- Mutant | -10/Materials Mutant | -10/Mines Mutant | -10/Subcaves Resources | -11 -10 -10 -10 ----------- Run | Yrd Mat Min Sub Matter Collected 502 | 277 17 52 156 Remotely . | . . . . Salvage Created 681 | 116 128 52 385 Parts 47 | 8 6 5 28 Haulers Intercepted . | . . . . Recyclers Shooed 1 | 1 . . . Parts Field Recycled . | . . . . Retrieved Matter . | . . . . Parts Self-Destructed 11 | . . . 11 Prevented . | . . . . Parts Restored . | . . . . Kills | -11 -10 -10 -10 ------- Run | Yrd Mat Min Sub Combat Hostiles Destroyed 15 | . 3 3 9 Melee 3 | . . 3 . Guns 8 | . 3 . 5 Cannons 4 | . . . 4 Classes Destroyed 5 | 2 1 1 1 Tunneler 2 | 2 . . . Recycler 1 | 1 . . . Swarmer 3 | . . 3 . Grunt 3 | . 3 . . Subdweller 9 | . . . 9 Best Kill Streak 3 | 3 3 3 2 Combat Bots Only 3 | . 3 3 2 Max Kills in Single Turn 1 | 1 1 1 1 Gunslinging . | . . . . Exploded . | . . . . Melee 1 | . . 1 . Uniques/NPCs Destroyed . | . . . . Combat | -11 -10 -10 -10 -------- Run | Yrd Mat Min Sub Hostile Shots Fired 83 | . 21 15 47 Missed 20 | . 6 3 11 Hits 63 | . 15 12 36 Projectile 63 | . 15 12 36 Critical Strikes 6 | . 3 . 3 Damage Taken 899 | . 170 64 665 Core 256 | . 32 24 200 Absorbed by Shields . | . . . . Ignored by Resistances 262 | . 51 24 187 Core Remaining (%) 100 | 100 . . . Volleys Fired 77 | 7 14 . 56 Largest 3 | 2 2 . 3 Hottest 165 | 60 85 . 165 Shots Fired 143 | 14 24 . 105 Gun 106 | 14 24 . 68 Cannon 37 | . . . 37 Launcher . | . . . . Special . | . . . . Kinetic 42 | 7 14 . 21 Thermal 86 | . 2 . 84 Explosive . | . . . . Electromagnetic 15 | 7 8 . . Robot Hit Streak 18 | 11 18 . 18 Robot Miss Streak 2 | . 1 . 2 Penetration Max . | . . . . Secondary Targets 1 | . . . 1 Max Gunslinging Chain 1 | . . . 1 Shots Hit Robots 82 | 11 17 5 49 Core Hits 33 | 6 10 3 14 Critical Kills . | . . . . Critical Parts Destroyed . | . . . . Critical Strikes 2 | . 1 . 1 Burn 1 | . . . 1 Corrupt 1 | . 1 . . Melee Attacks 19 | . 1 8 10 Impact . | . . . . Slashing 19 | . 1 8 10 Piercing . | . . . . Sneak Attacks . | . . . . Combat Hostiles . | . . . . Follow-up Attacks . | . . . . Damage Inflicted 1372 | 144 259 122 847 Guns 905 | 144 193 . 568 Cannons 279 | . . . 279 Explosions 66 | . 66 . . Melee 122 | . . 122 . Ramming . | . . . . Kinetic 348 | 48 65 . 235 Thermal 695 | . 83 . 612 Explosive . | . . . . Electromagnetic 207 | 96 111 . . Impact . | . . . . Slashing 122 | . . 122 . Piercing . | . . . . Highest Corruption . | . . . . Average Corruption . | . . . . Corruption Purged . | . . . . Corruption Blocked . | . . . . Overload Shots . | . . . . Overflow Damage . | . . . . Projectiles . | . . . . Explosions . | . . . . Melee . | . . . . Knockbacks . | . . . . Impact . | . . . . Kinetic . | . . . . Secondary . | . . . . Self-Inflicted Damage . | . . . . Shots . | . . . . Rammed . | . . . . Targets Rammed . | . . . . Kicked . | . . . . Crushed . | . . . . Highest Temperature 259 | 40 202 . 259 Average Temperature 53 | 20 95 . 43 Received Heat Transfer 515 | . 177 . 338 Siege Activations . | . . . . Martial Activations . | . . . . Shielding Activations . | . . . . Robots Disrupted . | . . . . Combat Hostiles . | . . . . Robots Corrupted . | . . . . Combat Hostiles . | . . . . Parts Fried . | . . . . Impact Corruptions . | . . . . Robots Melted . | . . . . Combat Hostiles . | . . . . Parts Melted 1 | . . . 1 Heat Transferred 1408 | . 187 . 1221 Parts Sabotaged . | . . . . Parts Stolen . | . . . . Parts Stripped . | . . . . Power Chain Reactions 1 | . 1 . . Alert | -11 -10 -10 -10 ------- Run | Yrd Mat Min Sub Maximum Alert Level . | . . . . Low Security (%) 100 | 100 100 100 . Level 1 . | . . . . Level 2 . | . . . . Level 3 . | . . . . Level 4 . | . . . . Level 5 . | . . . . High Security . | . . . . Max Security . | . . . . Peak Influence 88 | 10 88 75 . Initial 15 | . . 15 . Average 36 | 1 50 51 . Influence Increases 216 | 15 131 70 . Destroy 0b10 Robot/C 120 | . 60 60 . Destroy 0b10 Robot/NC 15 | 15 . . . Destroy Leader 20 | . 10 10 . Successful Hack 4 | . 4 . . Disable Machine 9 | . 9 . . Destroy Structure 3 | . 3 . . Lose Combat Pursuer 45 | . 45 . . Influence Decreases 216 | 15 84 62 55 Entered New Map 65 | . . 32 33 Time Decay 141 | 15 74 30 22 Lost Part 10 | . 10 . . Squads Dispatched . | . . . . Investigation . | . . . . Extermination . | . . . . Reinforcement . | . . . . Assault . | . . . . Garrison . | . . . . Intercept . | . . . . Searches Triggered . | . . . . Construction Impeded . | . . . . Haulers Reinforced . | . . . . Active Scanning Responses . | . . . . Cargo Convoy Interrupts . | . . . . Stealth | -11 -10 -10 -10 --------- Run | Yrd Mat Min Sub Distress Signals . | . . . . Communications Jammed . | . . . . Distress Signals . | . . . . Times Spotted 21 | . 8 3 10 Peak Tracking Total 4 | . 4 3 2 Tactical Retreats 2 | . 2 . . Traps | -11 -10 -10 -10 ------- Run | Yrd Mat Min Sub Traps Triggered 1 | . . . 1 Indirectly . | . . . . Trap Hack Attempts . | . . . . Triggered . | . . . . Disarmed . | . . . . Reprogrammed . | . . . . Reused . | . . . . Traps Extracted . | . . . . Installed 1 | . . . 1 Triggered . | . . . . Machines | -11 -10 -10 -10 ---------- Run | Yrd Mat Min Sub Machines Disabled 3 | . 1 . 2 Max in Single Turn 1 | . 1 . 1 Machines Repaired . | . . . . Machines Dismantled . | . . . . Machines Sabotaged . | . . . . Overloaded Fab Kills . | . . . . Hacking | -11 -10 -10 -10 --------- Run | Yrd Mat Min Sub Machines Accessed 3 | . 1 . 2 Terminals 1 | . 1 . . Fabricators . | . . . . Repair Stations . | . . . . Recycling Units . | . . . . Scanalyzers . | . . . . Garrison Access . | . . . . Total Hacks 16 | . 2 . 14 Successful 16 | . 2 . 14 Failed . | . . . . Catastrophic . | . . . . Database Lockouts . | . . . . Manual 2 | . 2 . . Terminals 2 | . 2 . . Fabricators . | . . . . Repair Stations . | . . . . Recycling Units . | . . . . Scanalyzers . | . . . . Garrison Access . | . . . . Terminal Hacks 16 | . 2 . 14 Record 13 | . . . 13 Branch Access Points 1 | . 1 . . Zone Layout 1 | . 1 . . Proto ID Catalog 1 | . . . 1 Fabricator Hacks . | . . . . Repair Station Hacks . | . . . . Recycling Unit Hacks . | . . . . Scanalyzer . | . . . . Garrison Access Hacks . | . . . . Unauthorized Hacks . | . . . . Terminals . | . . . . Fabricators . | . . . . Repair Stations . | . . . . Recycling Units . | . . . . Scanalyzers . | . . . . Garrison Access . | . . . . Data Cores Recovered . | . . . . Used . | . . . . Hacking Detections . | . . . . Full Trace Events . | . . . . Feedback Events . | . . . . Feedback Blocked . | . . . . Robot Schematics Acquired . | . . . . Robots Built . | . . . . Authchips . | . . . . Time . | . . . . Total Robot Build Rating . | . . . . Part Schematics Acquired . | . . . . Parts Built . | . . . . Authchips . | . . . . Time . | . . . . Total Part Build Rating . | . . . . Part Studies Acquired . | . . . . Parts Repaired . | . . . . Time . | . . . . Parts Recycled . | . . . . Recycled Matter . | . . . . Retrieved Matter . | . . . . Retrieved Components . | . . . . Parts Scanalyzed . | . . . . Part Schematics Acquired . | . . . . Parts Damaged . | . . . . Bothacking | -11 -10 -10 -10 ------------ Run | Yrd Mat Min Sub Used RIF Installer . | . . . . Robots Hacked . | . . . . Non-combat . | . . . . Combat . | . . . . Robot Hacks Applied . | . . . . Relay Couplers Released . | . . . . Fabnet Peak Effective % . | . . . . Robots Rewired . | . . . . Allies Hacked . | . . . . Hacks Repelled . | . . . . Allies | -11 -10 -10 -10 -------- Run | Yrd Mat Min Sub Total Allies . | . . . . Largest Group . | . . . . Highest-Rated Group . | . . . . Highest-Rated Ally . | . . . . Total Orders . | . . . . Ally Attacks . | . . . . Total Damage . | . . . . Kills . | . . . . Allies Corrupted . | . . . . Allies Melted . | . . . . Intel | -11 -10 -10 -10 ------- Run | Yrd Mat Min Sub Active Infowar (turns) 1910 | 10 161 71 1668 Sensors 1653 | . . . 1653 Terrain 257 | 10 161 71 15 Robot Analysis Total . | . . . . Derelict Logs Recovered 2 | . . 1 1 Drone Launches . | . . . . Drone Recoveries . | . . . . Exploration | -11 -10 -10 -10 ------------- Run | Yrd Mat Min Sub Turns Passed 1993 | 93 161 71 1668 Spaces Moved 1697 | 54 127 40 1476 Core 1 | 1 . . . Treads . | . . . . Legs . | . . . . Wheels 1696 | 53 127 40 1476 Hover . | . . . . Flight . | . . . . Fastest Speed 50 | 50 90 80 80 Average Speed 90 | 89 90 82 91 Slowest Speed 110 | 90 90 90 110 Overloaded Moves . | . . . . Propulsion Burnouts . | . . . . Robots Hopped . | . . . . Potential Cave-ins . | . . . . Cave-ins Triggered . | . . . . Exploration Rate (%) 29 | 3 33 7 73 Regions Visited 3 Branch Regions 2 Pre-discovered Areas . | . . . . Known Exits Taken 1 | . 1 . . Unknown Exits Taken 2 | 1 . 1 . Scrap Searched 6 | . . . 6 Spaces Dug . | . . . . Terrain Destroyed 4 | . 3 . 1 Melee . | . . . . Projectile 1 | . . . 1 AOE 3 | . 3 . . Terrain Rammed . | . . . . Walls Destroyed . | . . . . Machines Disabled . | . . . . Actions | -11 -10 -10 -10 --------- Run | Yrd Mat Min Sub Total 1963 | 82 149 62 1670 Wait 121 | 12 1 3 105 Move 1694 | 53 126 39 1476 Hop . | . . . . Pick Up 14 | 3 4 4 3 Fast Attach 15 | 7 2 . 6 Attach 4 | . . . 4 Detach 1 | . 1 . . Swap 6 | . . 3 3 Drop 11 | . . 5 6 Fire 77 | 7 14 . 56 Melee 19 | . 1 8 10 Ram . | . . . . Kick . | . . . . Crush . | . . . . Escape Stasis . | . . . . Rewire . | . . . . Trap 1 | . . . 1 Miscellaneous . | . . . . Route ------- -11/Scrapyard -10/Materials (discovered 2 exits: *Min x2) -10/Mines -10/Subcaves (discovered 3 exits: *Mat x2 / Rec) History --------- Turn | Location | Event 29 | -11/Scrapyard | Discovered new exit (range 14) 94 | -11/Scrapyard | Entered Materials 110 | -10/Materials | Identified exit to Mines 255 | -10/Materials | Entered Mines 298 | -10/Mines | Discovered new exit (range 13) 304 | -10/Mines | Learned location of 1 exit from Materials 326 | -10/Mines | Entered Subcaves 362 | -10/Subcaves | Build established: Mutant 409 | -10/Subcaves | A swath of the cavern ceiling suddenly collapsed 648 | -10/Subcaves | Disturbed a concealed Subdweller 703 | -10/Subcaves | Learned Materials stockpile data 1163 | -10/Subcaves | Visited Clippyterm 1166 | -10/Subcaves | Identified exit to Materials 1166 | -10/Subcaves | Identified exit to Recycling 1166 | -10/Subcaves | Learned Factory garrison access intel 1363 | -10/Subcaves | Visited 4L-MR0's lab 1374 | -10/Subcaves | Found Meta Core 1376 | -10/Subcaves | Attached Meta Core, gained temporary slots: Propulsion, Utility, Weapon 1573 | -10/Subcaves | Shifting Twisted Machinery released Sub. Beam Cannon 1580 | -10/Subcaves | Shifting Twisted Machinery released Sub. Machine Gun 1683 | -10/Subcaves | Shifting Twisted Machinery released Battle Cannon 1685 | -10/Subcaves | Shifting Twisted Machinery released Sub. Monowheel 1711 | -10/Subcaves | Shifting Twisted Machinery released Battle Cannon 1760 | -10/Subcaves | Shifting Twisted Machinery released Mak. System Shield 1920 | -10/Subcaves | Core integrity fell below 50% 1967 | -10/Subcaves | Core integrity fell below 20% 1994 | -10/Subcaves | Destroyed by QH-CLK(R) with Subdweller Laser Last Messages --------------- Machinery. 01742_ Acquired Sub. Monowheel. Mak. System Shield falls loose from the Twisted Machinery. 01782_ Acquired 48 matter. 01791_ Acquired Sub. Machine Gun. 01908_ Q7-EC7(R): "LEAVESUB!" 01920_ Q7-EC7(R) destroyed. 01926_ Acquired 15 matter. 01928_ Acquired Sub. Monowheel. 01933_ Sub. Machine Gun destroyed. 01952_ Wheel destroyed. 01980_ Destroyed Scrap Shield. 01983_ 3K-7LX(R) suffers critical hit (Burn). 01983_ 3K-7LX(R) destroyed. 01983_ Switching to secondary target: QH-CLK(R). 01984_ Critical hit (Destroy). 01984_ Sub. Monowheel destroyed. 01986_ Temporary Propulsion slot lost. 01986_ Particle Gun destroyed. Map ----- +----------------------------------------------------+ | ?????????????????????????????????????????????????? | | ?????????????????????????????????????????????????? | | ?????????????????????????????????????????????????? | | ?????????????????????????????????????????????????? | | ?????????????????????????????????????????????????? | | ?????????????????????????????????????????????????? | | ???????????????????????? ????????????????????????? | | ???????????????????????? ???????????????????????? | | ???????????????????????? #?????????????????????? | | ???????????????????????? #?????????????????????? | | ??????????????????????? ?????????????????????? | | ??????????????????????? ????????????????????? | | ??????????????????????? ????????????????????? | | ??????????????????????? ?????????????????????? | | ????#######???????????? ??????????????????????? | | ????# ###??????#### ???????????????????????? | | ???? < ??????## # ""???????????????????????? | | ????# ???????? % ????????????????????????? | | ????# ?????????? *%?????????????????????????? | | ????# #??????????## ##????????????????????????? | | ##??# #???????????# * #????????????????????????? | | #### ##?????????##&% #????????????????????????? | | ##???????## &[###????????????????????????? | | " #???????# #??????????????????????????? | | " #???????# #####??????????????????????? | | # ## ########## R @##?????????????????????? | | ###### # ## # # % #?????????????????????? | | ????# ! ##?????????????????????? | | ????## " ##??????????????????????? | | ?????# # # ## ### ##???????????????????????? | | ?????############?#######????????????????????????? | | ?????????????????????????????????????????????????? | | ?????????????????????????????????????????????????? | | ?????????????????????????????????????????????????? | | ?????????????????????????????????????????????????? | | ?????????????????????????????????????????????????? | | ?????????????????????????????????????????????????? | | ?????????????????????????????????????????????????? | | ?????????????????????????????????????????????????? | | ?????????????????????????????????????????????????? | | ?????????????????????????????????????????????????? | | ?????????????????????????????????????????????????? | | ?????????????????????????????????????????????????? | | ?????????????????????????????????????????????????? | | ?????????????????????????????????????????????????? | | ?????????????????????????????????????????????????? | | | | | | | | | +----------------------------------------------------+ Best States ------------- Heat Dissipation 25 Energy Generation 17 Energy Capacity 250 Matter Stores 300 Matter Capacity 300 Sight Range 16 Robot Scan Range 14 Terrain Scan Range 16 Terrain Scan Density 10 Resistance: KI 20 Resistance: TH 20 Resistance: EX 20 Resistance: EM 20 Resistance: I 20 Resistance: S 20 Resistance: P 20 Evasion (%) 44 Offensive Hacking 10 Item Schematics ----------------- None Robot Schematics ------------------ None Fabricated ------------ Nothing Repaired ---------- Nothing Studied --------- None Alien Tech Used ----------------- None Achievements -------------- None Challenges ------------ None Game ------ Seed ShockGravmagNullifier Manual? 0 Play Time 00:14:45 Cumulative 235.1 hours Start 2025.12.19 @ 19:41:45 End 2025.12.19 @ 19:54:58 Sessions 1 Manual Loads 0 Difficulty Adventurer Special Mode None Game No. 182 Rogue 10 Adventurer 172 Explorer 0 Win Type - Total 16 Types 7/0/6/3/0/0/0/0/0/0 Lore% 74 Gallery% 71 Achievement% 54 Wizard Run 0 Options --------- Layout 1 ASCII 0 Keyboard 0 Movement Mouse Keybinds 0 Fullscreen 1 Font 24/Smallcaps Map View 50x35 Zoom Use 4% Tactical HUD 1 Map Filters NONE Filters NONE Steam 1 RUN: a2cf0f28-7d35-4116-a406-6fb2a83d53ff